bitfinex-derivatives/quotes_BTCF0:USTF0_20250207
["timestamp","ask_amount","ask_price","bid_price","bid_amount"]
[1738957203138,0.1,97235.0,97234.0,0.00982001]
[1738957203337,0.101,97235.0,97234.0,0.21645791]
[1738957204236,0.102,97235.0,97234.0,0.21645791]
[1738957204636,0.101,97235.0,97234.0,0.21645791]
[1738957204843,0.1,97235.0,97234.0,0.21645791]
[1738957208750,0.15515166,97235.0,97234.0,0.21645791]
[1738957210140,0.15515166,97235.0,97234.0,0.21545791]
[1738957210340,0.15515166,97235.0,97234.0,0.21645791]
[1738957210850,0.1,97235.0,97234.0,0.21645791]
[1738957214754,0.2057077,97201.0,97200.0,0.1]
[1738957214954,0.2057077,97201.0,97200.0,0.0970133]
[1738957216244,0.2057077,97201.0,97200.0,1e-07]
[1738957216551,0.2057077,97201.0,97188.0,0.00052]
[1738957216552,0.2057331,97189.0,97188.0,0.00052]
[1738957216744,0.2057535,97180.0,97169.0,0.2057751]
[1738957216955,0.2057556,97179.0,97164.0,0.00052]
[1738957217160,0.12178688,97180.0,97167.0,0.37116442]
[1738957217351,0.3608,97170.0,97155.0,0.3608]
[1738957217655,0.3608,97170.0,97147.0,0.3608]
[1738957217656,0.3608,97162.0,97150.0,0.01028483]
[1738957217858,0.205818,97149.0,97147.0,0.3608]
[1738957218060,0.2058195,97149.0,97146.0,0.00052]
[1738957218254,0.3608,97151.0,97146.0,0.00052]
[1738957219153,0.0001544,97157.0,97146.0,0.00052]
[1738957219350,0.0001544,97157.0,97151.0,0.2058124]
[1738957220555,0.2058061,97155.0,97148.0,0.3608]
[1738957220760,0.2058061,97155.0,97148.0,0.20636567]
[1738957221164,0.3608,97149.0,97145.0,0.01023625]
[1738957221357,0.3608,97149.0,97140.0,0.00390637]
[1738957221657,0.5666189,97149.0,97140.0,0.00390637]
[1738957221862,0.2058263,97146.0,97140.0,0.00390637]
[1738957222358,0.2058334,97142.0,97140.0,0.00390637]
[1738957223768,0.2068334,97142.0,97140.0,0.00390637]
[1738957223950,0.2078334,97142.0,97140.0,0.00390637]
[1738957224156,0.002,97142.0,97140.0,0.00390637]
[1738957226058,0.002,97142.0,97140.0,0.00400637]
[1738957227368,0.002,97142.0,97140.0,0.20984157]
[1738957228168,0.002,97142.0,97141.0,0.3608]
[1738957229971,0.002,97142.0,97140.0,0.20984157]
[1738957230774,0.002,97142.0,97141.0,0.3608]
[1738957233076,0.002,97142.0,97141.0,0.1445993]
[1738957234179,0.002,97142.0,97140.0,0.01036825]
[1738957234368,0.002,97142.0,97138.0,0.00052]
[1738957234570,0.3628,97142.0,97138.0,0.00052]
[1738957234770,0.205839,97139.0,97138.0,0.00052]
[1738957234968,0.3628,97142.0,97138.0,0.00052]
[1738957235170,0.3618,97142.0,97138.0,0.00052]
[1738957235371,0.3628,97142.0,97138.0,0.00052]
[1738957236079,0.3618,97142.0,97138.0,0.00052]
[1738957236281,0.3628,97142.0,97138.0,0.00052]
[1738957236481,0.205839,97139.0,97138.0,0.00052]
[1738957237576,0.206839,97139.0,97138.0,0.00052]
[1738957238181,0.567639,97139.0,97138.0,0.00052]
[1738957238785,0.568639,97139.0,97138.0,0.00052]
[1738957240181,0.62209415,97139.0,97138.0,0.00052]
[1738957242578,0.82884454,97139.0,97138.0,0.00052]
[1738957242774,0.62300554,97139.0,97127.0,0.01059152]
[1738957243080,0.2058691,97125.0,97120.0,0.0736]
[1738957243282,0.2058691,97125.0,97116.0,0.2058859]
[1738957243977,0.36160001,97130.0,97117.0,0.2058839]
[1738957244178,0.3608,97130.0,97119.0,0.2058808]
[1738957244369,0.3608,97130.0,97121.0,0.2058769]
[1738957244569,0.3608,97130.0,97115.0,0.37135054]
[1738957244570,0.3608,97130.0,97122.0,0.2058745]
[1738957244780,0.3608,97130.0,97128.0,0.2058621]
[1738957245474,0.3618,97130.0,97128.0,0.2058621]
[1738957245874,0.3618,97130.0,97129.0,0.1285]
[1738957246075,0.3628,97130.0,97129.0,0.1285]
[1738957246273,0.3628,97130.0,97115.0,0.37135054]
[1738957246274,0.3628,97130.0,97115.0,0.01055054]
[1738957246479,0.2058962,97112.0,97111.0,0.0417]
[1738957246683,0.5666962,97112.0,97111.0,0.0417]
[1738957247379,0.3608,97112.0,97101.0,0.0868]
[1738957247586,0.3608,97112.0,97102.0,0.0417]
[1738957247774,0.5667153,97103.0,97102.0,0.0417]
[1738957247977,0.5667153,97103.0,97091.0,0.21633203]
[1738957248285,0.5667168,97103.0,97091.0,0.01039323]
[1738957248878,0.5677168,97103.0,97089.0,0.0417]
[1738957249076,0.5687168,97103.0,97090.0,0.2059429]
[1738957249279,0.3628,97103.0,97089.0,0.0417]
[1738957249586,0.2059188,97102.0,97091.0,0.2059403]
[1738957249885,0.2059188,97102.0,97091.0,0.0896405]
[1738957250182,0.3608,97094.0,97091.0,0.0896405]
[1738957250880,0.3608,97094.0,97089.0,0.0417]
[1738957251282,0.3608,97091.0,97081.0,0.0868]
[1738957251583,0.3608,97082.0,97049.0,0.00056]
[1738957251784,0.60437376,97091.0,97054.0,0.3608]
[1738957251785,0.3608,97069.0,97054.0,0.3608]
[1738957251993,0.3608,97083.0,97063.0,0.2059983]
[1738957252180,0.00015449,97075.0,97064.0,0.2059966]
[1738957252380,0.00015449,97075.0,97060.0,0.2060052]
[1738957252688,0.00015449,97075.0,97074.0,0.2059768]
[1738957252986,0.005,97091.0,97090.0,0.2059429]
[1738957253182,0.005,97091.0,97074.0,0.00052]
[1738957253383,0.005,97091.0,97065.0,0.48274137]
[1738957253591,0.3608,97084.0,97083.0,0.2059577]
[1738957253788,0.3608,97084.0,97070.0,0.12178688]
[1738957253986,0.3608,97084.0,97065.0,0.00015449]
[1738957253987,0.3608,97071.0,97065.0,0.00015449]
[1738957254288,0.3608,97070.0,97065.0,0.00015449]
[1738957254591,0.2059938,97066.0,97065.0,0.00015449]
[1738957255686,0.3608,97070.0,97065.0,0.00015449]
[1738957256085,0.001,97066.0,97065.0,0.00015449]
[1738957258193,0.002,97066.0,97065.0,0.00015449]
[1738957258496,0.05208678,97066.0,97065.0,0.20615039]
[1738957258883,0.3608,97085.0,97065.0,0.00015449]
[1738957259088,0.3608,97085.0,97084.0,0.2059556]
[1738957259785,0.26788446,97100.0,97092.0,0.2059386]
[1738957259994,0.26788446,97100.0,97084.0,0.43464]
[1738957259995,0.3608,97095.0,97084.0,0.3608]
[1738957260296,0.004,97085.0,97084.0,0.3608]
[1738957260687,0.3648,97085.0,97083.0,0.2797572]
[1738957260893,0.5707542,97085.0,97081.0,0.0738]
[1738957261096,0.3678,97085.0,97081.0,0.0738]
[1738957261291,0.2059566,97084.0,97081.0,0.0738]
[1738957262292,0.3628,97085.0,97081.0,0.0738]
[1738957262598,0.3608,97085.0,97081.0,0.0739]
[1738957262801,0.3608,97082.0,97060.0,0.0001]
[1738957263000,0.3608,97066.0,97060.0,0.0001]
[1738957264614,0.3608,97061.0,97047.0,0.0411]
[1738957264799,0.3608,97049.0,97047.0,0.0411]
[1738957265497,0.5668299,97049.0,97047.0,0.0411]
[1738957266105,0.5668299,97049.0,97047.0,0.0412]
[1738957266404,0.5668299,97049.0,97034.0,0.08401651]
[1738957266405,0.2060396,97045.0,97034.0,0.08401651]
[1738957266790,0.2060427,97043.0,97034.0,0.08401651]
[1738957267104,0.2060427,97043.0,97031.0,0.2060661]
[1738957267105,0.2061169,97008.0,97007.0,0.00052]
[1738957267403,0.2061381,96999.0,96983.0,0.3608]
[1738957267597,0.5669381,96999.0,96983.0,0.3608]
[1738957268000,0.3608,96999.0,96989.0,0.12178688]
[1738957268301,0.3608,97010.0,96998.0,0.2061382]
[1738957268495,0.3608,97010.0,96996.0,0.3608]
[1738957268896,0.001,96999.0,96996.0,0.3608]
[1738957269096,0.001,96999.0,96990.0,0.12178688]
[1738957269494,0.001,96999.0,96990.0,0.32794128]
[1738957269900,0.001,96999.0,96990.0,0.12178688]
[1738957270205,0.001,96999.0,96996.0,0.001]
[1738957270206,0.002,96999.0,96996.0,0.001]
[1738957270704,0.3608,96997.0,96983.0,0.001]
[1738957270908,0.3608,96997.0,96964.0,0.3608]
[1738957270909,0.3608,96997.0,96990.0,0.0011]
[1738957271598,0.3608,96997.0,96996.0,0.001]
[1738957272200,0.3608,96997.0,96990.0,0.0011]
[1738957272404,0.3618,96997.0,96995.0,0.20367939]
[1738957272798,0.3608,96997.0,96995.0,0.20367939]
[1738957273108,0.3618,96997.0,96996.0,0.001]
[1738957273505,0.3628,96997.0,96996.0,0.001]
[1738957274404,0.3628,96997.0,96995.0,0.001]
[1738957274910,0.3628,96997.0,96996.0,0.001]
[1738957275504,0.3628,96997.0,96995.0,0.001]
[1738957275808,0.2061424,96996.0,96995.0,0.001]
[1738957276009,0.206153,96991.0,96990.0,0.0001]
[1738957277111,0.0445,96996.0,96990.0,0.0001]
[1738957277309,0.001,96991.0,96990.0,0.0001]
[1738957278114,0.001,96991.0,96990.0,0.0002]
[1738957278503,0.002,96991.0,96990.0,0.0012]
[1738957279009,0.002,96991.0,96990.0,0.362]
[1738957279210,0.001,96991.0,96990.0,0.362]
[1738957280605,0.002,96991.0,96990.0,0.362]
[1738957281005,0.00015465,97003.0,96990.0,0.362]
[1738957281207,0.00015465,97003.0,97002.0,0.2061296]
[1738957281403,0.00015465,97003.0,97002.0,0.06436449]
[1738957282106,0.00015465,97003.0,97002.0,0.27049409]
[1738957282303,0.00115465,97003.0,97002.0,0.27049409]
[1738957282618,0.00215465,97003.0,97002.0,0.27149409]
[1738957282918,0.00215465,97003.0,97002.0,0.07568]
[1738957283117,0.001,97003.0,97002.0,0.43748]
[1738957283409,0.1509946,97013.0,97002.0,0.43748]
[1738957283410,0.1509946,97013.0,97012.0,0.2061084]
[1738957283612,0.18119352,97019.0,97018.0,0.2060956]
[1738957283816,0.18119352,97019.0,97018.0,0.2808156]
[1738957284901,0.15071095,97023.0,97022.0,0.2060871]
[1738957286108,0.2060919,97020.0,97018.0,0.001]
[1738957286818,0.15171095,97023.0,97018.0,0.001]
[1738957287120,0.15171095,97023.0,97017.0,0.2060966]
[1738957287317,0.15271095,97023.0,97017.0,0.2060966]
[1738957287712,0.15171095,97023.0,97011.0,0.0748]
[1738957287914,0.15171095,97023.0,97019.0,0.206093]
[1738957288109,0.15071095,97023.0,97011.0,0.0748]
[1738957288310,0.15171095,97023.0,97016.0,0.2060983]
[1738957288708,0.001,97023.0,97016.0,0.2060983]
[1738957289218,0.001,97023.0,97011.0,0.002]
[1738957289518,0.2060885,97022.0,97011.0,0.002]
[1738957290019,0.2061043,97014.0,97011.0,0.003]
[1738957290207,0.2061043,97014.0,97011.0,0.001]
[1738957290410,0.3608,97017.0,97011.0,0.001]
[1738957291210,0.3608,97017.0,97015.0,0.2061009]
[1738957291407,0.3608,97017.0,97011.0,0.001]
[1738957291819,0.001,97014.0,97011.0,0.002]
[1738957292224,0.2061078,97013.0,97011.0,0.003]
[1738957293417,0.2071078,97013.0,97011.0,0.003]
[1738957294509,0.001,97013.0,96990.0,0.0002]
[1738957294708,0.3608,96997.0,96990.0,0.0002]
[1738957295312,0.2061487,96994.0,96990.0,0.0002]
[1738957295514,0.3608,96997.0,96990.0,0.0002]
[1738957295914,0.3608,96997.0,96990.0,0.0012]
[1738957296119,0.3608,96997.0,96990.0,0.001]
[1738957296314,0.37096677,96997.0,96990.0,0.00023714]
[1738957296823,0.37096677,96997.0,96990.0,0.00123714]
[1738957297025,0.3608,96997.0,96990.0,0.00123714]
[1738957297526,0.3688,96997.0,96990.0,0.00023714]
[1738957297719,0.3778,96997.0,96975.0,0.206187]
[1738957298116,0.3778,96997.0,96979.0,0.14424381]
[1738957298117,0.70608642,96996.0,96979.0,0.14424381]
[1738957298420,0.70608642,96996.0,96980.0,0.18371469]
[1738957299018,0.45710242,96996.0,96979.0,0.14424381]
[1738957299221,0.45710242,96996.0,96974.0,0.01015435]
[1738957299413,0.45910242,96996.0,96971.0,0.3608]
[1738957300222,0.46110242,96996.0,96971.0,0.3608]
[1738957300423,0.46110242,96996.0,96971.0,0.37139474]
[1738957300829,0.18185592,96993.0,96971.0,0.37139474]
[1738957301826,0.18185592,96993.0,96975.0,0.2061868]
[1738957302028,0.18185592,96993.0,96980.0,0.18371469]
[1738957302322,0.18185592,96993.0,96980.0,0.54451469]
[1738957303125,0.18185592,96993.0,96980.0,0.75068999]
[1738957303332,0.3608,96997.0,96980.0,0.75068999]
[1738957304123,0.3608,96997.0,96980.0,0.75168999]
[1738957304718,0.3608,96997.0,96980.0,0.69045384]
[1738957304921,0.3608,96997.0,96982.0,0.2061714]
[1738957305931,0.3608,96997.0,96984.0,0.2061662]
[1738957307020,0.3628,96997.0,96987.0,0.12247854]
[1738957307322,0.3608,97015.0,97007.0,0.2061186]
[1738957307719,0.3608,97008.0,96988.0,0.1384]
[1738957307919,0.3608,97008.0,96990.0,0.2061541]
[1738957307920,0.3608,96998.0,96990.0,0.2061541]
[1738957308129,0.3608,96998.0,96988.0,0.0935]
[1738957308932,0.3608,96998.0,96983.0,0.00015465]
[1738957309123,0.3608,96985.0,96983.0,0.00015465]
[1738957309432,0.0456,96984.0,96983.0,0.00015465]
[1738957310333,0.0478,96997.0,96987.0,0.2061615]
[1738957310334,0.3608,96988.0,96987.0,0.2061615]
[1738957311536,0.3618,96988.0,96987.0,0.2101615]
[1738957311841,0.3628,96988.0,96987.0,0.2111615]
[1738957312338,0.3618,96988.0,96987.0,0.2071615]
[1738957312637,0.3628,96988.0,96987.0,0.2111615]
[1738957313731,0.3618,96988.0,96987.0,0.2111615]
[1738957313931,0.3608,96988.0,96987.0,0.2071615]
[1738957314132,0.3608,96988.0,96987.0,0.002]
[1738957314338,0.3618,96988.0,96987.0,0.003]
[1738957314735,0.3608,96988.0,96983.0,0.00015465]
[1738957314931,0.3628,96988.0,96987.0,0.003]
[1738957315136,0.7236,96988.0,96960.0,0.12247854]
[1738957315336,0.7216,96964.0,96923.0,0.3608]
[1738957315640,0.3608,96941.0,96930.0,0.12247854]
[1738957315935,0.3608,96941.0,96925.0,0.3608]
[1738957316244,0.3608,96931.0,96930.0,0.12247854]
[1738957316426,0.3608,96931.0,96926.0,0.03224828]
[1738957318140,0.3618,96931.0,96926.0,0.03224828]
[1738957318344,0.3628,96931.0,96926.0,0.03224828]
[1738957323154,0.002,96931.0,96929.0,0.2062846]
[1738957324041,0.002,96931.0,96926.0,0.03224828]
[1738957324240,0.001,96931.0,96926.0,0.03224828]
[1738957324551,0.002,96931.0,96926.0,0.03224828]
[1738957324758,0.002,96931.0,96926.0,0.23853818]
[1738957325745,0.002,96931.0,96930.0,0.3608]
[1738957326060,0.001,96931.0,96930.0,0.3608]
[1738957326360,0.002,96931.0,96930.0,0.3608]
[1738957326959,0.001,96931.0,96930.0,0.3608]
[1738957327259,0.002,96931.0,96930.0,0.3608]
[1738957330757,0.2062154,96962.0,96930.0,0.3608]
[1738957330758,0.3608,96972.0,96930.0,0.3808]
[1738957330963,0.3608,96972.0,96958.0,0.2062229]
[1738957331165,0.3608,96972.0,96959.0,0.2062199]
[1738957331351,0.3608,96972.0,96960.0,0.2062178]
[1738957331559,0.3608,96972.0,96961.0,0.2062152]
[1738957331758,0.3608,96972.0,96951.0,0.0931]
[1738957331962,0.3608,96972.0,96960.0,0.2062173]
[1738957332257,0.3608,96972.0,96961.0,0.2062154]
[1738957332453,0.3608,96972.0,96954.0,0.00015474]
[1738957332659,0.3608,96958.0,96954.0,0.00015474]
[1738957333862,0.3608,96958.0,96954.0,0.00115474]
[1738957334062,0.3608,96958.0,96954.0,0.00315474]
[1738957336159,0.3608,96958.0,96954.0,0.20938514]
[1738957336368,0.3608,96969.0,96955.0,0.3608]
[1738957336661,0.3608,96969.0,96959.0,0.18393641]
[1738957336863,0.3608,96969.0,96968.0,0.2062019]
[1738957337668,0.3648,96969.0,96968.0,0.2062019]
[1738957337866,0.3678,96969.0,96968.0,0.2062019]
[1738957339960,0.3648,96969.0,96968.0,0.2062019]
[1738957340161,0.3638,96969.0,96968.0,0.2062019]
[1738957340362,0.007,96969.0,96968.0,0.5670019]
[1738957340562,0.3608,96989.0,96968.0,0.36900911]
[1738957340760,0.3608,96989.0,96981.0,0.2061726]
[1738957341458,0.3608,96989.0,96982.0,0.2061715]
[1738957341661,0.3608,96989.0,96977.0,0.085]
[1738957341863,0.5669578,96989.0,96977.0,0.085]
[1738957342067,0.3608,96978.0,96975.0,0.00015474]
[1738957343269,0.3608,96978.0,96953.0,0.00052]
[1738957343470,0.3608,96954.0,96947.0,0.2062462]
[1738957344563,0.3608,96954.0,96948.0,0.2062439]
[1738957344766,0.3608,96954.0,96941.0,0.00015474]
[1738957344767,0.2062338,96953.0,96947.0,0.006]
[1738957345072,0.3618,96954.0,96947.0,0.006]
[1738957346275,0.3618,96954.0,96948.0,0.003]
[1738957346468,0.0464,96953.0,96948.0,0.003]
[1738957346973,0.0464,96953.0,96949.0,0.2062419]
[1738957347863,0.002,96954.0,96953.0,0.2062338]
[1738957348066,0.001,96954.0,96953.0,0.2062338]
[1738957349166,0.001,96953.0,96952.0,0.2062359]
[1738957349676,0.00015474,96960.0,96959.0,0.206221]
[1738957350868,0.00115474,96960.0,96959.0,0.209221]
[1738957351184,0.3608,96975.0,96974.0,0.2061891]
[1738957351775,0.00092,96986.0,96985.0,0.2061657]
[1738957352073,0.1177268,96992.0,96985.0,0.44468]
[1738957352372,0.00015466,96998.0,96990.0,0.0515386]
[1738957352577,0.3608,97022.0,97000.0,0.3608]
[1738957352772,0.3608,97022.0,97020.0,0.2060906]
[1738957352975,0.3608,97022.0,97012.0,0.12251585]
[1738957353274,0.3608,97022.0,97008.0,0.3608]
[1738957353275,0.2060966,97018.0,97008.0,0.08392]
[1738957353575,0.3608,97014.0,97008.0,0.08392]
[1738957353972,0.3608,97011.0,97003.0,0.00015466]
[1738957354169,0.3608,97004.0,97003.0,0.00015466]
[1738957355479,0.5669253,97004.0,97003.0,0.00015466]
[1738957356075,0.3608,97004.0,96977.0,0.2061823]
[1738957356276,0.3608,96982.0,96972.0,0.30741876]
[1738957356579,0.3608,96973.0,96972.0,0.31590658]
[1738957357082,0.3608,96982.0,96981.0,0.2061742]
[1738957357287,0.00015466,96982.0,96981.0,0.2061742]
[1738957358370,0.00115466,96982.0,96981.0,0.2141742]
[1738957359764,0.00015466,96982.0,96981.0,0.2121742]
[1738957359969,0.00215466,96982.0,96981.0,0.2201742]
[1738957360575,0.00115466,96982.0,96981.0,0.2121742]
[1738957360774,0.00215466,96982.0,96981.0,0.2201742]
[1738957361464,0.00115466,96982.0,96981.0,0.2121742]
[1738957361665,0.00115466,96982.0,96981.0,0.2161742]
[1738957362273,0.00015466,96982.0,96981.0,0.2101742]
[1738957362577,0.00015466,96982.0,96981.0,0.2141742]
[1738957363079,0.00015466,96982.0,96981.0,0.2101742]
[1738957363379,0.00015466,96982.0,96981.0,0.2131742]
[1738957363582,0.00015466,96982.0,96981.0,0.2101742]
[1738957363780,0.00015466,96982.0,96981.0,0.2071742]
[1738957364077,0.00115466,96982.0,96981.0,0.2131742]
[1738957364877,0.00015466,96982.0,96981.0,0.2091742]
[1738957365074,0.00015466,96982.0,96981.0,0.2121742]
[1738957365782,0.00115466,96982.0,96981.0,0.2131742]
[1738957366374,0.00215466,96982.0,96981.0,0.2171742]
[1738957366575,0.00215466,96982.0,96981.0,0.2121742]
[1738957366774,0.00115466,96982.0,96981.0,0.2161742]
[1738957367682,0.00015466,96982.0,96981.0,0.2101742]
[1738957367881,0.00015466,96982.0,96981.0,0.2141742]
[1738957368590,0.3608,96994.0,96993.0,0.2061487]
[1738957369082,0.3608,96994.0,96984.0,0.18368359]
[1738957369083,0.3608,96994.0,96986.0,0.2061619]
[1738957369878,0.3628,96994.0,96986.0,0.2061619]
[1738957370293,0.3628,96994.0,96984.0,0.19182608]
[1738957370584,0.2061729,96982.0,96980.0,0.00015466]
[1738957371084,0.0511,96981.0,96980.0,0.00015466]
[1738957372076,0.0511,96981.0,96980.0,0.00415466]
[1738957372477,0.0511,96981.0,96980.0,0.00015466]
[1738957372692,0.3608,96982.0,96980.0,0.00415466]
[1738957373081,0.3608,96982.0,96980.0,0.00915466]
[1738957373887,0.3618,96982.0,96980.0,0.00415466]
[1738957374387,0.3618,96982.0,96911.0,0.01548]
[1738957374388,0.2062049,96967.0,96953.0,0.2062333]
[1738957374591,0.3608,96961.0,96954.0,0.2062311]
[1738957374781,0.3608,96961.0,96956.0,0.206227]
[1738957374981,0.3608,96961.0,96950.0,0.18368359]
[1738957375181,0.3608,96961.0,96959.0,0.2062202]
[1738957375589,0.3608,96961.0,96950.0,0.18368359]
[1738957375776,0.3608,96961.0,96954.0,0.2062308]
[1738957376077,0.3618,96961.0,96956.0,0.008]
[1738957376276,0.3628,96961.0,96959.0,0.009]
[1738957376479,0.3618,96961.0,96959.0,0.009]
[1738957376684,0.3628,96961.0,96959.0,0.016]
[1738957377087,0.3628,96961.0,96959.0,0.007]
[1738957377487,0.0484,96960.0,96959.0,0.007]
[1738957378381,0.0484,96960.0,96954.0,0.008]
[1738957378692,0.0484,96960.0,96956.0,0.004]
[1738957378987,0.0484,96960.0,96954.0,0.008]
[1738957379192,0.0494,96960.0,96959.0,0.012]
[1738957379691,0.0494,96960.0,96959.0,0.008]
[1738957379887,0.2062295,96955.0,96946.0,0.00015466]
[1738957380090,0.3608,96947.0,96946.0,0.00015466]
[1738957380286,0.5670465,96947.0,96946.0,0.00015466]
[1738957381888,0.5680465,96947.0,96946.0,0.00415466]
[1738957382786,0.5690465,96947.0,96946.0,0.01315466]
[1738957383582,0.5680465,96947.0,96946.0,0.00915466]
[1738957384493,0.5670465,96947.0,96946.0,0.00915466]
[1738957385091,0.3608,96947.0,96946.0,0.00518116]
[1738957385286,0.3608,96947.0,96946.0,0.01334701]
[1738957385498,0.3608,96947.0,96946.0,0.05718116]
[1738957385994,0.5670465,96947.0,96946.0,0.00518116]
[1738957391405,0.3608,96947.0,96946.0,0.00518116]
[1738957398206,0.00015466,96965.0,96946.0,0.00518116]
[1738957398513,0.00015466,96965.0,96950.0,0.12261269]
[1738957398716,0.00015466,96965.0,96961.0,0.206215]
[1738957399012,0.3608,96962.0,96961.0,0.206215]
[1738957399207,0.00015466,96965.0,96951.0,0.0541]
[1738957399415,0.3608,96962.0,96956.0,0.206227]
[1738957399605,0.3608,96962.0,96957.0,0.206225]
[1738957399804,0.3608,96962.0,96951.0,0.0541]
[1738957400809,0.001,96961.0,96951.0,0.0541]
[1738957401020,0.2062402,96950.0,96947.0,0.0528]
[1738957401206,0.3608,96952.0,96947.0,0.0528]
[1738957401405,0.2062465,96947.0,96939.0,0.13376]
[1738957401610,0.3608,96941.0,96939.0,0.14247871]
[1738957402309,0.3608,96941.0,96939.0,0.05991871]
[1738957402609,0.3608,96941.0,96938.0,0.24642448]
[1738957403418,0.2062614,96940.0,96938.0,0.24642448]
[1738957403621,0.2062614,96940.0,96937.0,0.00015466]
[1738957403622,0.2062798,96932.0,96930.0,0.07355382]
[1738957403924,0.4123,96931.0,96930.0,0.07355382]
[1738957404124,0.3608,96931.0,96930.0,0.07355382]
[1738957405116,0.3618,96931.0,96930.0,0.07755382]
[1738957405329,0.002,96931.0,96930.0,0.01]
[1738957405634,0.3628,96931.0,96930.0,0.0648]
[1738957405822,0.002,96931.0,96930.0,0.0648]
[1738957407830,0.3608,96952.0,96939.0,0.2062635]
[1738957408028,0.3608,96944.0,96930.0,0.0648]
[1738957408223,0.3608,96944.0,96930.0,0.18741269]
[1738957408429,0.3608,96944.0,96943.0,0.206255]
[1738957409228,0.3608,96944.0,96930.0,0.18741269]
[1738957409229,0.3608,96944.0,96938.0,0.2062654]
[1738957409823,0.3608,96944.0,96934.0,0.00015474]
[1738957410022,0.3608,96944.0,96935.0,0.206272]
[1738957410225,0.3608,96944.0,96934.0,0.00015474]
[1738957410438,0.3608,96944.0,96942.0,0.2062554]
[1738957411135,0.7216,96944.0,96935.0,0.003]
[1738957411332,0.3608,96936.0,96935.0,0.003]
[1738957412826,0.3608,96936.0,96935.0,0.0559]
[1738957413224,0.3608,96944.0,96935.0,0.0559]
[1738957413225,0.3608,96944.0,96943.0,0.206255]
[1738957414025,0.00015474,96953.0,96943.0,0.3608]
[1738957414226,0.15116377,96961.0,96952.0,0.3608]
[1738957414535,0.18164039,96969.0,96943.0,0.48341269]
[1738957414536,0.18164039,96969.0,96953.0,0.106]
[1738957414834,0.18164039,96969.0,96954.0,0.2893912]
[1738957414835,0.3608,96960.0,96954.0,0.2893912]
[1738957415231,0.3608,96960.0,96954.0,0.08316]
[1738957415422,0.3608,96960.0,96944.0,0.0523]
[1738957415628,0.3608,96945.0,96944.0,0.1357]
[1738957416833,0.3618,96945.0,96944.0,0.005]
[1738957417429,0.3628,96945.0,96944.0,0.01961372]
[1738957417629,0.3628,96945.0,96944.0,0.011]
[1738957418229,0.3618,96945.0,96944.0,0.009]
[1738957419228,0.3608,96945.0,96944.0,0.007]
[1738957419625,0.3608,96945.0,96944.0,0.003]
[1738957419841,0.001,96945.0,96944.0,0.2162529]
[1738957420139,0.002,96945.0,96944.0,0.2172529]
[1738957420737,0.002,96945.0,96944.0,0.2152529]
[1738957421142,0.002,96945.0,96944.0,0.5760529]
[1738957421441,0.3608,96957.0,96956.0,0.2062274]
[1738957422336,0.3608,96957.0,96948.0,0.0536]
[1738957422537,0.3608,96957.0,96950.0,0.2062398]
[1738957422838,0.3608,96957.0,96951.0,0.08308]
[1738957423040,0.0574,96956.0,96943.0,0.00875707]
[1738957423236,0.3608,96947.0,96940.0,0.20565269]
[1738957423440,0.7216,96947.0,96940.0,0.20565269]
[1738957423834,0.7216,96947.0,96941.0,0.206259]
[1738957424833,0.7216,96947.0,96942.0,0.2062569]
[1738957425042,0.7216,96947.0,96940.0,0.218528]
[1738957425342,0.7216,96947.0,96940.0,0.135488]
[1738957425534,0.7216,96947.0,96940.0,0.138488]
[1738957426040,0.7216,96947.0,96940.0,0.137488]
[1738957426438,0.7216,96947.0,96941.0,0.004]
[1738957427243,0.7216,96947.0,96940.0,0.137488]
[1738957427542,0.7216,96947.0,96940.0,0.01487531]
[1738957428836,0.7216,96947.0,96940.0,0.01187531]
[1738957429036,0.7216,96947.0,96940.0,0.01087531]
[1738957429233,0.7216,96947.0,96941.0,0.003]
[1738957429547,0.7216,96947.0,96941.0,0.2092593]
[1738957429938,0.7216,96947.0,96941.0,0.2062593]
[1738957430336,0.3608,96947.0,96940.0,0.01387531]
[1738957430538,0.3608,96947.0,96941.0,0.002]
[1738957430741,0.3608,96947.0,96941.0,0.005]
[1738957431235,0.3608,96947.0,96946.0,0.2062486]
[1738957432441,0.3608,96961.0,96957.0,0.2062234]
[1738957432644,0.3608,96961.0,96950.0,0.12261269]
[1738957432836,0.3608,96951.0,96950.0,0.32885279]
[1738957433140,0.3608,96951.0,96950.0,0.2062401]
[1738957433539,0.3608,96953.0,96947.0,0.2062465]
[1738957433738,0.3608,96953.0,96946.0,0.002]
[1738957434442,0.0539,96952.0,96946.0,0.002]
[1738957434843,0.3638,96961.0,96946.0,0.002]
[1738957435044,0.3638,96961.0,96950.0,0.001]
[1738957435341,0.3608,96961.0,96958.0,0.2062226]
[1738957436348,0.3668,96961.0,96950.0,0.2062381]
[1738957436549,0.3608,96953.0,96950.0,0.2062381]
[1738957437543,0.3608,96953.0,96950.0,0.00872141]
[1738957437847,0.3608,96953.0,96944.0,0.08208]
[1738957438038,0.3608,96945.0,96944.0,0.09057471]
[1738957438241,0.3608,96945.0,96944.0,0.29682761]
[1738957438750,0.006,96961.0,96948.0,0.2062436]
[1738957438751,0.3608,96953.0,96948.0,0.2062436]
[1738957439651,0.3608,96953.0,96949.0,0.2062411]
[1738957440248,0.3608,96953.0,96950.0,0.20624]
[1738957440544,0.3608,96953.0,96948.0,0.003]
[1738957441551,0.2062423,96949.0,96948.0,0.003]
[1738957442142,0.2062423,96949.0,96948.0,0.001]
[1738957442452,0.3608,96950.0,96949.0,0.2062423]
[1738957444146,0.3608,96950.0,96949.0,0.22232627]
[1738957444548,0.36095474,96967.0,96955.0,0.2062295]
[1738957444549,0.3608,96956.0,96955.0,0.2062295]
[1738957444753,0.36095474,96967.0,96958.0,0.2062215]
[1738957444949,0.36095474,96967.0,96959.0,0.0557]
[1738957446043,0.36495474,96967.0,96964.0,0.2062098]
[1738957446345,0.36495474,96967.0,96959.0,0.0557]
[1738957446346,0.36895474,96967.0,96966.0,0.2062061]